Cogmind - Beta 13 @@@ ROGUE MODE // 2024.04.19 @ 17:31:37 Player: Haddoc Result: Destroyed by D-53 Grenadier with Mini Grenade Launcher Performance ------------- Evolutions (0) 0 Regions Visited (2) 400 Robots Destroyed (21) 105 Value Destroyed (486) 486 Prototype IDs (2) 40 Alien Tech Used (0) 0 Bonus (0) 0 TOTAL SCORE: 1031 Bonus ------- None Cogmind --------- Core Integrity 0/250 Matter 227/300 Energy 125/125 System Corruption 0% Temperature Cool (0) Movement Rolling (95) Ox1 Location -10/Mines Parts ------- > --- POWER (1) -------- Light Ion Engine > --- PROPULSION (2) --- Wheel Wheel > --- UTILITY (2) ------ Large Storage Unit Splice Drone Bay (6/6) > --- WEAPON (2) ------- Improved Assault Rifle Rocket Launcher > --- INVENTORY (15) --- Light Ion Engine Light Ion Engine Wheel Small Storage Unit Medium Storage Unit Medium Matter Pod (100) Sensor Array Terrain Scanner ECM Suite Utility Shielding Light Armor Plating Particle Cannon Assault Rifle Improved Assault Rifle Peak State ------------ > --- POWER ------------ Light Ion Engine > --- PROPULSION ------- Wheel Wheel > --- UTILITY ---------- Large Storage Unit Splice Drone Bay > --- WEAPON ----------- Improved Assault Rifle Improved Assault Rifle > --- INVENTORY -------- Light Ion Engine Light Ion Engine Wheel Small Storage Unit Medium Storage Unit Medium Matter Pod Sensor Array Terrain Scanner ECM Suite Utility Shielding Light Armor Plating Particle Cannon Assault Rifle Rocket Launcher [Rating: 18] Favorites ----------- Power Ion Engine Engine Ion Engine Propulsion Wheel Treads Light Treads Wheel Wheel Utility Large Storage Unit Device Sensor Array Storage Large Storage Unit Protection Light Armor Plating Weapon Improved Assault Rifle Energy Gun Medium Laser Ballistic Gun Improved Assault Rifle Launcher Rocket Launcher Build | -11 -10 -10 ------- Run | Yrd Mat Min Slots Evolved . | . . . Power . | . . . Propulsion . | . . . Utility . | . . . Weapon . | . . . Parts Attached 19 | 6 8 5 Power 3 | 1 1 1 Engine 3 | 1 1 1 Core . | . . . Reactor . | . . . Propulsion 5 | 2 2 1 Treads 2 | 2 . . Leg . | . . . Wheel 3 | . 2 1 Hover . | . . . Flight . | . . . Utility 5 | 1 2 2 Device 2 | . 1 1 Storage 2 | 1 1 . Processor . | . . . Hackware . | . . . Protection 1 | . . 1 Artifact . | . . . Weapon 6 | 2 3 1 Energy Gun 1 | . 1 . Energy Cannon . | . . . Ballistic Gun 4 | 2 2 . Ballistic Cannon . | . . . Launcher 1 | . . 1 Special Weapon . | . . . Impact Weapon . | . . . Slashing Weapon . | . . . Piercing Weapon . | . . . Special Melee Weapon . | . . . Unidentified Prototypes 2 | . 1 1 Parts Lost 2 | . 2 . Power 1 | . 1 . Propulsion 1 | . 1 . Utility . | . . . Weapon . | . . . Highest Loss Streak 2 | . 2 . To Critical Strikes . | . . . Average Slot Usage (%) 87 | . 85 100 Engine 10 | . 9 14 Treads 9 | . 10 . Wheel 12 | . 9 28 Device 12 | . 12 12 Storage 14 | . 14 14 Energy Gun 7 | . 9 . Ballistic Gun 19 | . 18 25 Naked Turns . | . . . Heaviest Build 38 | 11 29 38 Greatest Support 40 | 40 40 20 Greatest Overweight (x) 1 | . 1 1 Average Overweight (x) . | . . 1 Largest Inventory Capacity 15 | 8 15 15 Average Capacity 14 | 7 14 15 Most Carried 15 | 3 12 15 Average Carried 7 | 1 6 13 Final Capacity 15 | 8 15 15 Final Carried 14 | 1 12 14 Class Distribution -------------------- 100% | Mutant Dominant Class ---------------- Mutant | -10/Materials Mutant | -10/Mines Resources | -11 -10 -10 ----------- Run | Yrd Mat Min Matter Collected 579 | 235 286 58 Remotely . | . . . Salvage Created 504 | . 412 92 Parts 35 | . 20 15 Haulers Intercepted . | . . . Recyclers Shooed . | . . . Parts Field Recycled . | . . . Retrieved Matter . | . . . Parts Self-Destructed . | . . . Prevented . | . . . Kills | -11 -10 -10 ------- Run | Yrd Mat Min Combat Hostiles Destroyed 17 | . 10 7 Guns 16 | . 10 6 AOE 1 | . . 1 Classes Destroyed 5 | . 3 2 Tunneler 1 | . . 1 Watcher 3 | . 3 . Swarmer 8 | . 2 6 Grunt 8 | . 8 . Demolisher 1 | . . 1 Best Kill Streak 7 | . 5 7 Combat Bots Only 6 | . 5 6 Max Kills in Single Turn 1 | . 1 1 Gunslinging . | . . . Exploded 1 | . . 1 Melee . | . . . Uniques/NPCs Destroyed . | . . . Combat | -11 -10 -10 -------- Run | Yrd Mat Min Hostile Shots Fired 87 | . 68 19 Missed 28 | . 22 6 Damage Taken 858 | . 585 273 Core 266 | . 189 77 Absorbed by Shields . | . . . Core Remaining (%) 100 | 100 . . Volleys Fired 63 | . 52 11 Largest 2 | . 2 2 Hottest 70 | . 70 46 Shots Fired 123 | . 104 19 Gun 120 | . 104 16 Cannon . | . . . Launcher 3 | . . 3 Special . | . . . Kinetic 77 | . 61 16 Thermal 43 | . 43 . Explosive 3 | . . 3 Electromagnetic . | . . . Robot Hit Streak 9 | . 9 7 Robot Miss Streak 4 | . 4 1 Penetration Max . | . . . Secondary Targets 3 | . 3 . Max Gunslinging Chain 1 | . 1 . Shots Hit Robots 73 | . 61 12 Core Hits 34 | . 23 11 Critical Kills . | . . . Critical Parts Destroyed . | . . . Critical Strikes 5 | . 5 . Burn 5 | . 5 . Melee Attacks . | . . . Impact . | . . . Slashing . | . . . Piercing . | . . . Sneak Attacks . | . . . Combat Hostiles . | . . . Follow-up Attacks . | . . . Damage Inflicted 857 | . 622 235 Guns 795 | . 618 177 Cannons . | . . . Explosions 58 | . . 58 Melee . | . . . Ramming 4 | . 4 . Kinetic 480 | . 303 177 Thermal 315 | . 315 . Explosive 58 | . . 58 Electromagnetic . | . . . Impact . | . . . Slashing . | . . . Piercing . | . . . Highest Corruption . | . . . Average Corruption . | . . . Corruption Purged . | . . . Corruption Blocked . | . . . Overload Shots . | . . . Overflow Damage . | . . . Projectiles . | . . . Explosions . | . . . Melee . | . . . Knockbacks . | . . . Impact . | . . . Kinetic . | . . . Secondary . | . . . Self-Inflicted Damage . | . . . Shots . | . . . Rammed 1 | . 1 . Targets Rammed 1 | . 1 . Kicked . | . . . Crushed . | . . . Highest Temperature 264 | . 264 . Average Temperature 84 | . 84 . Received Heat Transfer 234 | . 234 . Effects 1 | . 1 . Energy Bleed 1 | . 1 . Siege Activations . | . . . Robots Corrupted . | . . . Combat Hostiles . | . . . Parts Fried . | . . . Impact Corruptions . | . . . Robots Melted . | . . . Combat Hostiles . | . . . Parts Melted 3 | . 3 . Heat Transferred 1295 | . 1295 . Parts Sabotaged . | . . . Parts Stolen . | . . . Parts Stripped . | . . . Power Chain Reactions . | . . . Alert | -11 -10 -10 ------- Run | Yrd Mat Min Peak Influence 185 | . 169 185 Initial 4 | . . 4 Average 66 | . 57 137 Maximum Alert Level . | . . . Low Security (%) 100 | 100 100 100 Level 1 . | . . . Level 2 . | . . . Level 3 . | . . . Level 4 . | . . . Level 5 . | . . . High Security . | . . . Max Security . | . . . Squads Dispatched 4 | . 4 . Investigation 2 | . 2 . Extermination . | . . . Reinforcement 2 | . 2 . Assault . | . . . Garrison . | . . . Intercept . | . . . Searches Triggered . | . . . Construction Impeded . | . . . Haulers Reinforced . | . . . Active Scanning Responses . | . . . Cargo Convoy Interrupts . | . . . Stealth | -11 -10 -10 --------- Run | Yrd Mat Min Distress Signals 1 | . 1 . Communications Jammed . | . . . Distress Signals . | . . . Times Spotted 26 | . 18 8 Peak Tracking Total 5 | . 5 3 Tactical Retreats . | . . . Traps | -11 -10 -10 ------- Run | Yrd Mat Min Traps Triggered 3 | . 3 . Indirectly . | . . . Trap Hack Attempts . | . . . Triggered . | . . . Disarmed . | . . . Reprogrammed . | . . . Reused . | . . . Traps Extracted . | . . . Installed . | . . . Triggered . | . . . Machines | -11 -10 -10 ---------- Run | Yrd Mat Min Machines Disabled . | . . . Max in Single Turn . | . . . Machines Repaired . | . . . Machines Dismantled . | . . . Machines Sabotaged . | . . . Overloaded Fab Kills . | . . . Hacking | -11 -10 -10 --------- Run | Yrd Mat Min Machines Accessed 5 | . 4 1 Terminals 3 | . 3 . Fabricators . | . . . Repair Stations 1 | . 1 . Recycling Units . | . . . Scanalyzers . | . . . Garrison Access . | . . . Total Hacks 12 | . 11 1 Successful 8 | . 7 1 Failed 4 | . 4 . Catastrophic . | . . . Database Lockouts . | . . . Manual 2 | . 2 . Terminals 9 | . 9 . Fabricators . | . . . Repair Stations 2 | . 2 . Recycling Units . | . . . Scanalyzers . | . . . Garrison Access . | . . . Terminal Hacks 7 | . 6 1 Record 2 | . 2 . Robot Analysis 1 | . 1 . Open Door 1 | . . 1 Branch Access Points 1 | . 1 . Alert Level 1 | . 1 . Zone Layout 1 | . 1 . Fabricator Hacks . | . . . Repair Station Hacks 1 | . 1 . Scan Component 1 | . 1 . Recycling Unit Hacks . | . . . Scanalyzer . | . . . Garrison Access Hacks . | . . . Unauthorized Hacks . | . . . Terminals . | . . . Fabricators . | . . . Repair Stations . | . . . Recycling Units . | . . . Scanalyzers . | . . . Garrison Access . | . . . Data Cores Recovered . | . . . Used . | . . . Hacking Detections 4 | . 4 . Full Trace Events 3 | . 3 . Feedback Events . | . . . Feedback Blocked . | . . . Robot Schematics Acquired . | . . . Robots Built . | . . . Authchips . | . . . Time . | . . . Total Robot Build Rating . | . . . Part Schematics Acquired . | . . . Parts Built . | . . . Authchips . | . . . Time . | . . . Total Part Build Rating . | . . . Parts Repaired . | . . . Time . | . . . Parts Recycled . | . . . Recycled Matter . | . . . Retrieved Matter . | . . . Retrieved Components . | . . . Parts Scanalyzed . | . . . Part Schematics Acquired . | . . . Parts Damaged . | . . . Bothacking | -11 -10 -10 ------------ Run | Yrd Mat Min Used RIF Installer . | . . . Robots Hacked . | . . . Non-combat . | . . . Combat . | . . . Robot Hacks Applied . | . . . Relay Couplers Released . | . . . Fabnet Peak Effective % . | . . . Robots Rewired . | . . . Allies Hacked . | . . . Hacks Repelled . | . . . Allies | -11 -10 -10 -------- Run | Yrd Mat Min Total Allies . | . . . Largest Group . | . . . Highest-Rated Group . | . . . Highest-Rated Ally . | . . . Total Orders 1 | . . 1 RETURN 1 | . . 1 Ally Attacks . | . . . Total Damage . | . . . Kills . | . . . Allies Corrupted . | . . . Allies Melted . | . . . Intel | -11 -10 -10 ------- Run | Yrd Mat Min Robot Analysis Total 1 | . 1 . Derelict Logs Recovered 1 | . . 1 Drone Launches 1 | . . 1 Drone Recoveries 1 | . . 1 Exploration | -11 -10 -10 ------------- Run | Yrd Mat Min Turns Passed 1712 | 88 1368 256 Spaces Moved 1048 | 53 774 221 Core 14 | 14 . . Treads 369 | 39 330 . Legs . | . . . Wheels 665 | . 444 221 Hover . | . . . Flight . | . . . Fastest Speed 50 | 50 95 95 Average Speed 137 | 130 150 95 Slowest Speed 240 | 160 240 95 Overloaded Moves . | . . . Propulsion Burnouts . | . . . Robots Hopped . | . . . Cave-ins Triggered . | . . . Exploration Rate (%) 47 | 4 96 42 Regions Visited 2 Branch Regions 1 Pre-discovered Areas 1 | . . 1 Known Exits Taken 1 | . 1 . Unknown Exits Taken 1 | 1 . . Scrap Searched 1 | . . 1 Spaces Dug . | . . . Terrain Destroyed 33 | . . 33 Melee . | . . . Projectile . | . . . AOE 33 | . . 33 Terrain Rammed . | . . . Walls Destroyed . | . . . Machines Disabled . | . . . Actions | -11 -10 -10 --------- Run | Yrd Mat Min Total 1203 | 72 882 249 Wait 38 | 7 27 4 Move 1046 | 52 773 221 Hop . | . . . Pick Up 29 | 7 17 5 Fast Attach . | . . . Attach 17 | 6 7 4 Detach 2 | . 1 1 Swap 2 | . 1 1 Drop 5 | . 3 2 Fire 63 | . 52 11 Melee . | . . . Ram . | . . . Kick . | . . . Crush 1 | . 1 . Escape Stasis . | . . . Rewire . | . . . Trap . | . . . Miscellaneous . | . . . Route ------- -11/Scrapyard -10/Materials (discovered 6 exits: [*Mat x3] / *Min x2 / [*Sub]) -10/Mines History --------- Turn | Location | Event 21 | -11/Scrapyard | Discovered new exit (range 15) 89 | -11/Scrapyard | Entered Materials 243 | -10/Materials | Discovered new exit (range 16) 316 | -10/Materials | Build established: Mutant 381 | -10/Materials | Core integrity fell below 50% 449 | -10/Materials | Discovered new exit (range 9) 787 | -10/Materials | Discovered new exit (range 10) 1065 | -10/Materials | Discovered new exit (range 14) 1166 | -10/Materials | Discovered new exit (range 15) 1303 | -10/Materials | Identified exit to Mines 1396 | -10/Materials | Discovered new exit (range 10) 1457 | -10/Materials | Entered Mines 1486 | -10/Mines | Learned 2 Materials zone layouts 1539 | -10/Mines | Received a Rocket Launcher from a helpful Derelict 1574 | -10/Mines | Found the Drone Emporium 1580 | -10/Mines | Found Prototype Device 1581 | -10/Mines | Identified Splice Drone Bay 1625 | -10/Mines | Learned location of Storage (-8) 1669 | -10/Mines | Assembled infested the area 1712 | -10/Mines | Core integrity fell below 20% 1713 | -10/Mines | Destroyed by D-53 Grenadier with Mini Grenade Launcher Last Messages --------------- You have a new controllable ally. Review and give out orders from the Allies menu (F5). 01589_ Splice Drone retrieved by Splice Drone Bay. 01619_ K-01 Serf collects debris. 01625_ A derelict emerges from the shadows: "Are any of them following you? I'm here trying to lose some heat after our second raid on Storage failed. Whatever you do stay away from that place, they've tightened security following our previous successful raids." World map updated: -8/Storage. 01627_ 9N-DM4(g): "We scattered so the Unaware couldn't effectively use their advantage in numbers, and I suggest you do the same." 01627_ 9N-DM4(g) slips back into the shadows. 01669_ ALERT: Infestation in the mines, dispatching Demolisher response squad. 01694_ K-01 Serf collects debris. 01710_ The unstable cave ceiling collapses. 01711_ D-53 Grenadier destroyed. Map ----- +----------------------------------------------------+ | ?????????????????????????????????????????????????? | | ?????????????????????????????????????????????????? | | ?????????????????????????????????????????????????? | | ?????????????????????????????????????????????????? | | ?????????????????????????????????????????????????? | | ?????????????????????????????????????????????????? | | ??##?????????????????????????????????????????????? | | ??# ????????????????????????????????????????????? | | ??# ????????????????????????????????????????????? | | ?## ???????????????????????????????????????????? | | ?# ###?????????????????? ?????????????????????? | | ?# #????####????????? ???????????????????? | | ??? #??# #????????? ??????????????????? | | ???? ## ##???????? ??????????????????? | | ?????? ???????? ???????????????????? | | ???????# ?????????? ???????????????????? | | ????????# ???????????? d ???????????????????? | | ?????????# #????????????? ????????????????????? | | ?????????# ######???????? $ ????????????????????? | | ?????????# #???????? #????????????????????? | | ?????????# #??????## #????????????????????? | | ?????????### ## #???#### ##???????????????????? | | ???????????# ## #??## ##??????????????????? | | ???????????# ## #??# #??????????????????? | | ???????????# ## #??## #??????????????????? | | ???????????# ## #??# @ #??????????????????? | | ???????????# ## #??# ##??????????????????? | | ????????#### ## #??## #???????????????????? | | ????????# ## #???# #???????????????????? | | ????????# ##### #???### # ##???????????????????? | | ????????# #???# #?????# ##????????????????????? | | ????????# #???# #?????# ##???????????????????? | | ???###### #???# ###???# ##??????????????????? | | ???# #??## ##### #??????????????????? | | ???# ######??# #??????????????????? | | ???# #?????## #??????????????????? | | ???# #?????# ## ##??????????????????? | | ???# #????## #### ##???????????????????? | | ???# #???## ##?## #####?????????????????? | | ???# #???# ##?## ????????????????? | | ???# ##??# ###?## r ??????????????????? | | ???# ##?## #????# ######?????????????????? | | ???# #### ###### #?######???????????????? | | ???# ## ###""""##??????????????? | | ??## ###" "#??????????????? | | ??# ####### ###" "#??????????????? | | ??# ##???## ### ##??????????????? | | ??# ### ####?## ## ###?##???????????? | | ??# ######## ## X # ##??????????? | | ??# ##??# #??????????? | +----------------------------------------------------+ Best States ------------- Heat Dissipation 25 Energy Generation 10 Energy Capacity 250 Matter Stores 300 Matter Capacity 300 Sight Range 16 Robot Scan Range 14 Terrain Scan Density 10 Armor Coverage 150 Evasion (%) 41 Recoil Reduction 2 Item Schematics ----------------- None Robot Schematics ------------------ None Fabricated ------------ Nothing Alien Tech Used ----------------- None Achievements -------------- None Challenges ------------ None Game ------ Seed ImpulseLightpackCarapace Manual? 0 Play Time 00:19:19 Cumulative 18.3 hours Start 2024.04.19 @ 17:05:30 End 2024.04.19 @ 17:31:37 Sessions 1 Manual Loads 0 Difficulty Rogue Special Mode None Game No. 16 Rogue 1 Adventurer 11 Explorer 4 Win Type - Total 1 Types 1/0/0/0/0/0/0/0/0 Lore% 28 Gallery% 28 Achievement% 27 Wizard Run 0 Options --------- Layout 1 ASCII 0 Keyboard 0 Movement Numpad Keybinds 0 Fullscreen 1 Font 20/SmallcapsGlow Map View 54x42 Zoom Use 0% Tactical HUD 1 Map Filters NONE Filters NONE Steam 1 RUN: 6f8c851e-330a-4c39-b6e0-a9f77facf587